fUST/lending_fUST_20240125
["ID","MTS","AMOUNT","RATE_DAILY","PERIOD"]
[312739745,1706191838673,-309.6903097,0.00018557,2]
[312739747,1706191838683,-1026.64006432,0.00018557,2]
[312739748,1706191838692,-690.57418058,0.00018557,2]
[312739750,1706191838701,-295.01713766,0.00018557,2]
[312739752,1706191838710,-614.04279127,0.00018562,2]
[312739754,1706191838720,-8010.10806137,0.00018563,2]
[312739756,1706191838729,-306.33135271,0.00018564,2]
[312739758,1706191838738,-264.22501911,0.00018571,2]
[312739760,1706191838747,-309.4796622,0.00018571,2]
[312739762,1706191838757,-237.18290849,0.00018571,2]
[312739764,1706191838768,-157.10944563,0.00018571,2]
[312739766,1706191838778,-155.24962663,0.00018571,2]
[312739769,1706191838788,-202.95281076,0.00018571,2]
[312739771,1706191838797,-156.55351786,0.00018571,2]
[312739773,1706191838807,-155.19487419,0.00018571,2]
[312739775,1706191838816,-225.3996251,0.00018571,2]
[312739777,1706191838825,-14681.74151529,0.00018766,2]
[312739778,1706191838834,-261.56198175,0.00018772,2]
[312739780,1706191838843,-189.89773254,0.00018773,2]
[312739782,1706191838852,-228.0737053,0.00018773,2]
[312739784,1706191838862,-170.0,0.00018773,2]
[312739786,1706191838872,-157.88779037,0.0001878,2]
[312739788,1706191838881,-470.87385711,0.00018784,2]
[312739790,1706191838891,-155.72681905,0.00018784,2]
[312739792,1706191838900,-2074.94658461,0.00018789,2]
[312739794,1706191838909,-158.74528164,0.00018808,2]
[312739796,1706191838919,-688.13841462,0.00018808,2]
[312739798,1706191838929,-2104.41067508,0.00018809,2]
[312739800,1706191838938,-711.96563516,0.0001881,2]
[312739802,1706191838948,-156.775062,0.0001881,2]
[312739804,1706191838957,-185.34356728,0.0001881,2]
[312739806,1706191838967,-400.42085716,0.00018914,2]
[312739816,1706191839049,-206.63241368,0.00018993,2]
[312739818,1706191839060,-1583.23422085,0.00019,2]
[312739820,1706191839069,-161.861972,0.00019178,2]
[312739822,1706191839079,-167.030478,0.00019178,2]
[312739824,1706191839088,-158.1108614,0.00019178,2]
[312739826,1706191839097,-206.63241368,0.00019569,2]
[312739828,1706191839107,-155.39068066,0.00019848,2]
[312739830,1706191839117,-300.0,0.0002,2]
[312739832,1706191839127,-850.73963902,0.0002,2]
[312739834,1706191839136,-1198.61763963,0.0002,2]
[312739836,1706191839145,-323.30988592,0.0002,2]
[312739838,1706191839154,-679.03304923,0.0002,2]
[312739840,1706191839163,-937.28901272,0.0002,2]
[312739842,1706191839172,-154.9690062,0.0002,2]
[312739844,1706191839182,-206.63241368,0.00020146,2]
[312739846,1706191839191,-169.364193,0.00020349,2]
[312739848,1706191839201,-200.0,0.00020353,2]
[312739850,1706191839210,-206.63241368,0.00020722,2]
[312739852,1706191839220,-543.09257964,0.00020822,2]
[312739854,1706191839230,-500.0,0.00020822,2]
[312739856,1706191839240,-500.0,0.00020822,2]
[312739858,1706191839250,-335.28077481,0.00020822,2]
[312739860,1706191839259,-190.40084948,0.00020822,2]
[312739862,1706191839270,-500.0,0.00020822,2]
[312739864,1706191839280,-313.1047801,0.00020822,2]
[312739866,1706191839289,-577.97246029,0.00020822,2]
[312739868,1706191839298,-500.0,0.00020822,2]
[312739870,1706191839307,-500.0,0.00020822,2]
[312739872,1706191839316,-500.0,0.00020822,2]
[312739874,1706191839326,-500.0,0.00020822,2]
[312739876,1706191839335,-211.38916615,0.00020822,2]
[312739878,1706191839345,-500.0,0.00020822,2]
[312739880,1706191839357,-500.0,0.00020822,2]
[312739882,1706191839367,-173.79610921,0.00020822,2]
[312739884,1706191839377,-500.0,0.00020822,2]
[312739886,1706191839386,-500.0,0.00020822,2]
[312739888,1706191839395,-500.0,0.00020822,2]
[312739890,1706191839404,-500.0,0.00020822,2]
[312739892,1706191839413,-500.0,0.00020822,2]
[312739894,1706191839422,-500.0,0.00020822,2]
[312739896,1706191839431,-500.0,0.00020822,2]
[312739898,1706191839441,-500.0,0.00020822,2]
[312739900,1706191839450,-500.0,0.00020822,2]
[312739902,1706191839460,-500.0,0.00020822,2]
[312739904,1706191839469,-500.0,0.00020822,2]
[312739906,1706191839479,-500.0,0.00020822,2]
[312739908,1706191839488,-500.0,0.00020822,2]
[312739910,1706191839497,-500.0,0.00020822,2]
[312739912,1706191839507,-500.0,0.00020822,2]
[312739914,1706191839515,-500.0,0.00020822,2]
[312739916,1706191839525,-500.0,0.00020822,2]
[312739918,1706191839534,-500.0,0.00020822,2]
[312739919,1706191839543,-500.0,0.00020822,2]
[312739921,1706191839553,-500.0,0.00020822,2]
[312739923,1706191839562,-500.0,0.00020822,2]
[312739926,1706191839571,-500.0,0.00020822,2]
[312739928,1706191839581,-500.0,0.00020822,2]
[312739930,1706191839590,-500.0,0.00020822,2]
[312739932,1706191839599,-500.0,0.00020822,2]
[312739934,1706191839609,-500.0,0.00020822,2]
[312739936,1706191839617,-500.0,0.00020822,2]
[312739937,1706191839626,-500.0,0.00020822,2]
[312739939,1706191839636,-500.0,0.00020822,2]
[312739941,1706191839645,-500.0,0.00020822,2]
[312739943,1706191839654,-500.0,0.00020822,2]
[312739946,1706191839663,-500.0,0.00020822,2]
[312739947,1706191839672,-500.0,0.00020822,2]
[312739949,1706191839682,-500.0,0.00020822,2]
[312739951,1706191839691,-500.0,0.00020822,2]
[312739953,1706191839701,-500.0,0.00020822,2]
[312739955,1706191839710,-500.0,0.00020822,2]
[312739957,1706191839719,-500.0,0.00020822,2]
[312739959,1706191839728,-500.0,0.00020822,2]
[312739961,1706191839737,-500.0,0.00020822,2]
[312739963,1706191839746,-500.0,0.00020822,2]
[312739965,1706191839754,-633.82892817,0.00020822,2]
[312739967,1706191839764,-500.0,0.00020822,2]
[312739969,1706191839774,-500.0,0.00020822,2]
[312739971,1706191839783,-500.0,0.00020822,2]
[312739973,1706191839792,-500.0,0.00020822,2]
[312739975,1706191839801,-151.0,0.00020822,2]
[312739977,1706191839810,-151.0,0.00020822,2]
[312739980,1706191839819,-696.844756,0.00020822,2]
[312739981,1706191839828,-696.844756,0.00020822,2]
[312739983,1706191839838,-8866.361323,0.00020822,2]
[312739985,1706191839848,-8866.361323,0.00020822,2]
[312739987,1706191839857,-8866.361323,0.00020822,2]
[312739989,1706191839867,-8866.361323,0.00020822,2]
[312739992,1706191839877,-1826.29054789,0.00021,2]
[312739994,1706191839888,-172.748647,0.00021918,2]
[312739996,1706191839898,-2085.40450746,0.00021959,2]
[312739998,1706191839906,-3970.33105698,0.00022,2]
[312740000,1706191839915,-426.05744554,0.00022,2]
[312740002,1706191839925,-151.0,0.00022,2]
[312740004,1706191839934,-151.0,0.00022,2]
[312740006,1706191839943,-696.844756,0.00022,2]
[312740008,1706191839952,-696.844756,0.00022,2]
[312740010,1706191839962,-280.0,0.00022388,7]
[312740012,1706191839971,-172.748647,0.00022773,2]
[312740014,1706191839980,-1335.91267832,0.00023,2]
[312740016,1706191839989,-172.748647,0.00023627,2]
[312740018,1706191839998,-169.73510142,0.00024044,2]
[312740019,1706191840008,-172.748647,0.00024482,2]
[312740022,1706191840018,-391.0,0.00024627,7]
[312740024,1706191840027,-280.0,0.00024658,2]
[312740026,1706191840036,-498.66582765,0.0002496,5]
[312740028,1706191840046,-505.189382,0.00024996,2]
[312740030,1706191840056,-505.189382,0.00024996,2]
[312740032,1706191840066,-1500.90139842,0.00025,2]
[312740034,1706191840076,-25347.50051164,0.00025,2]
[312740035,1706191840085,-1002.8647388,0.00025,2]
[312740036,1706191840094,-4724.75315233,0.00025,2]
[312740037,1706191840103,-260.18097711,0.00025,2]
[312740038,1706191840113,-897.18882543,0.000264,2]
[312740040,1706191840123,-290.53836744,0.00027,2]
[312740042,1706191840132,-200.0,0.00027089,15]
[312740043,1706191840141,-348.0,0.00027089,15]
[312740044,1706191840151,-393.719375,0.00027397,2]
[312740046,1706191840160,-393.719375,0.00027397,2]
[312740047,1706191840169,-151.0,0.00027397,2]
[312740048,1706191840179,-241.615986,0.00027397,2]
[312740049,1706191840188,-696.844756,0.00027397,2]
[312740050,1706191840197,-696.844756,0.00027397,2]
[312740051,1706191840206,-8866.361323,0.00027397,2]
[312740052,1706191840216,-8866.361323,0.00027397,2]
[312740053,1706191840226,-151.0,0.00027397,2]
[312740054,1706191840235,-195.084018,0.00027397,2]
[312740055,1706191840244,-151.0,0.00027397,2]
[312740057,1706191840254,-633.85944127,0.0002772,2]
[312740059,1706191840263,-154.9690062,0.00028,7]
[312740061,1706191840274,-153.0,0.00028904,2]
[312740063,1706191840284,-620.69297206,0.00029106,2]
[312740065,1706191840293,-169.73510142,0.00029681,4]
[312740067,1706191840302,-2543.41353878,0.0002979,7]
[312740069,1706191840312,-200.0,0.00029798,15]
[312740071,1706191840321,-200.0,0.00029798,15]
[312740073,1706191840331,-368.0,0.00029798,15]
[312740075,1706191840340,-155.17005011,0.00029898,2]
[312740077,1706191840351,-500.0,0.00029899,2]
[312740079,1706191840360,-245.19051253,0.00029899,2]
[312740081,1706191840370,-500.0,0.00029899,2]
[312740083,1706191840380,-500.0,0.00029899,2]
[312740085,1706191840389,-500.0,0.00029899,2]
[312740087,1706191840399,-381.25968953,0.00029899,2]
[312740089,1706191840408,-500.0,0.00029899,2]
[312740091,1706191840417,-500.0,0.00029899,2]
[312740093,1706191840427,-500.0,0.00029899,2]
[312740095,1706191840436,-197.57885532,0.00029899,2]
[312740104,1706191840445,-500.0,0.00029899,2]
[312740106,1706191840522,-500.0,0.00029899,2]
[312740108,1706191840532,-500.0,0.00029899,2]
[312740110,1706191840541,-500.0,0.00029899,2]
[312740112,1706191840550,-500.0,0.00029899,2]
[312740114,1706191840559,-500.0,0.00029899,2]
[312740116,1706191840569,-431.35577074,0.00029899,2]
[312740118,1706191840578,-176.9236708,0.00029899,2]
[312740120,1706191840587,-500.0,0.00029899,2]
[312740122,1706191840596,-499.99999999,0.00029899,2]
[312740124,1706191840605,-276000.0,0.000299,2]
[312740126,1706191840614,-393.719375,0.000299,2]
[312740128,1706191840623,-393.719375,0.000299,2]
[312740130,1706191840632,-505.189382,0.000299,2]
[312740132,1706191840641,-505.189382,0.000299,2]
[312740134,1706191840650,-174.720816,0.000299,2]
[312740136,1706191840659,-696.844756,0.000299,2]
[312740138,1706191840668,-696.844756,0.000299,2]
[312740140,1706191840677,-8866.361323,0.000299,2]
[312740142,1706191840686,-8866.361323,0.000299,2]
[312740144,1706191840695,-151.0,0.000299,2]
[312740145,1706191840704,-151.0,0.000299,2]
[312740147,1706191840714,-229.82325492,0.00029997,2]
[312740149,1706191840723,-1580.03121208,0.00029997,2]
[312740152,1706191840733,-555.60673024,0.00029997,2]
[312740153,1706191840743,-290.18991434,0.00029998,2]
[312740156,1706191840753,-155.31303741,0.00029998,2]
[312740158,1706191840762,-274.09393528,0.00029998,2]
[312740159,1706191840772,-243.76580051,0.0003,4]
[312740161,1706191840782,-785.40936716,0.0003,4]
[312740163,1706191840791,-139264.62830083,0.0003,4]
[312740165,1706191840800,-688.78830185,0.0003,4]
[312740167,1706191840811,-7542.82848905,0.0003,5]
[312740170,1706191840820,-154.93802479,0.0003,4]
[312740172,1706191840829,-547.84983223,0.0003,2]
[312740174,1706191840838,-4988.57079427,0.0003,3]
[312740175,1706191840848,-393.719375,0.0003,2]
[312740178,1706191840857,-393.719375,0.0003,2]
[312740180,1706191840866,-505.189382,0.0003,2]
[312740181,1706191840875,-505.189382,0.0003,2]
[312740183,1706191840884,-696.844756,0.0003,2]
[312740185,1706191840894,-696.844756,0.0003,2]
[312740187,1706191840903,-8866.361323,0.0003,2]
[312740190,1706191840913,-8866.361323,0.0003,2]
[312740191,1706191840922,-151.0,0.0003,2]
[312740193,1706191840931,-151.0,0.0003,2]
[312740196,1706191840941,-157.894736,0.00030137,2]
[312740198,1706191840950,-326.58097042,0.00031,6]
[312740199,1706191840960,-150.0,0.00031,4]
[312740201,1706191840970,-181242.18971822,0.00031,2]
[312740203,1706191840979,-393.719375,0.00031,2]
[312740205,1706191840988,-393.719375,0.00031,2]
[312740207,1706191840998,-505.189382,0.00031,2]
[312740210,1706191841007,-505.189382,0.00031,2]
[312740212,1706191841018,-696.844756,0.00031,2]
[312740214,1706191841028,-696.844756,0.00031,2]
[312740215,1706191841037,-8866.361323,0.00031,2]
[312740217,1706191841047,-8866.361323,0.00031,2]
[312740219,1706191841057,-151.0,0.00031,2]
[312740221,1706191841067,-151.0,0.00031,2]
[312740223,1706191841076,-393.719375,0.000318,2]
[312740225,1706191841086,-393.719375,0.000318,2]
[312740228,1706191841095,-505.189382,0.000318,2]
[312740229,1706191841105,-505.189382,0.000318,2]
[312740232,1706191841114,-696.844756,0.000318,2]
[312740234,1706191841123,-696.844756,0.000318,2]
[312740236,1706191841133,-8866.361323,0.000318,2]
[312740238,1706191841143,-8866.361323,0.000318,2]
[312740240,1706191841152,-151.0,0.000318,2]
[312740241,1706191841161,-151.0,0.000318,2]
[312740243,1706191841171,-9862.28455494,0.000318,2]
[312740262,1706191841333,-22000.0,0.000318,2]
[312740264,1706191841344,-2596.90357907,0.000318,2]
[312740311,1706191841784,-262.4463546,0.00018479,2]
[312740313,1706191841793,-237.7892583,0.00018479,2]
[312740315,1706191841803,-1046.49558076,0.0001848,2]
[312740317,1706191841813,-155.00001712,0.0001848,2]
[312740319,1706191841822,-171.01329024,0.0001848,2]
[312740321,1706191841832,-154.9690062,0.0001848,2]
[312740323,1706191841842,-178.98764938,0.0001848,2]
[312740325,1706191841852,-543.83744739,0.000318,2]
[312740475,1706191843206,-2353.80534514,0.0002989,3]
[312747288,1706192567711,2102.8255172,0.00018071,2]
[312747289,1706192568217,6934.33179418,0.00018173,2]
[312747290,1706192568241,17965.66820582,0.00018173,2]
[312747291,1706192569756,513.0568439,0.00018071,2]
[312747292,1706192580352,4202.4684787,0.0001807,2]
[312747293,1706192649831,663.8707617,0.00018026,2]
[312747298,1706192759920,499.1198602,0.00018026,2]
[312747299,1706192844657,30.8801398,0.00017839,2]
[312747300,1706192844681,164.9792592,0.00017839,2]
[312747457,1706193011861,24900.0,0.00017668,2]
[312747620,1706193034824,-154.98450155,0.00018612,2]
[312747622,1706193034835,-3486.99741621,0.00018613,2]
[312747624,1706193034845,-1026.64006432,0.00018613,2]
[312747626,1706193034854,-1741.72112277,0.00018613,2]
[312747628,1706193034864,-199.31680526,0.00018613,2]
[312747630,1706193034874,-1294.21834109,0.00018613,2]
[312747632,1706193034884,-175.28445034,0.00018613,2]
[312747634,1706193034893,-272.67748325,0.00018613,2]
[312747636,1706193034902,-595.3566365,0.00018614,2]
[312747638,1706193034911,-154.98450155,0.00018614,2]
[312747640,1706193034920,-3920.61735066,0.00018614,2]
[312747642,1706193034930,-243.23479186,0.00018614,2]
[312747644,1706193034939,-688.25423184,0.00018615,2]
[312747646,1706193034948,-237.7892583,0.00018615,2]
[312747648,1706193034957,-616.99357783,0.00018615,2]
[312747650,1706193034966,-154.98450155,0.00018615,2]
[312747652,1706193034976,-265.58036127,0.00018615,2]
[312747654,1706193034985,-36979.4730265,0.00018615,2]
[312747656,1706193034994,-19618.85632196,0.00018615,2]
[312747658,1706193035006,-255.38021219,0.00018615,2]
[312747660,1706193035016,-526.92735468,0.00018616,2]
[312747662,1706193035025,-938.11704749,0.00018616,2]
[312747664,1706193035038,-166.74574018,0.00018616,2]
[312747666,1706193035048,-154.98450155,0.00018616,2]
[312747668,1706193035057,-154.98450155,0.00018616,3]
[312747670,1706193035067,-555.60673024,0.00018616,2]
[312747673,1706193035077,-16385.45391212,0.00018616,2]
[312747675,1706193035088,-3465.50921851,0.00018616,2]
[312747784,1706193038315,-329.68526722,0.00018612,2]
[312747786,1706193038325,-261.22970147,0.00018612,2]
[312747788,1706193038334,-19708.51890523,0.00018612,2]
[312747790,1706193038343,-500.0,0.00018612,2]
[312747792,1706193038352,-15226.35982831,0.00018612,2]
[312747794,1706193038362,-1842.59382584,0.00018616,2]
[312747796,1706193038371,-1242.95347942,0.00018617,2]
[312747798,1706193038380,-260.99214553,0.00018617,2]
[312747800,1706193038390,-680.366612,0.00018617,2]
[312747802,1706193038399,-4815.70009769,0.00018617,2]
[312747804,1706193038408,-154.98450155,0.00018617,2]
[312747806,1706193038418,-178.98764938,0.00018617,2]
[312747808,1706193038427,-211.61433974,0.00018617,2]
[312747810,1706193038436,-171.01329024,0.00018618,2]
[312747812,1706193038445,-154.98450155,0.00018618,2]
[312747814,1706193038454,-1580.03121208,0.00018618,2]
[312747816,1706193038464,-154.98450155,0.00018619,2]
[312747818,1706193038473,-154.98450155,0.00018619,2]
[312747820,1706193038482,-192.35223829,0.0001862,3]
[312747822,1706193038492,-155.10837766,0.00018714,2]
[312747824,1706193038502,-20881.31059739,0.00018715,2]
[312747826,1706193038510,-18911.34410975,0.00018716,2]
[312747828,1706193038520,-10546.60603151,0.00018716,2]
[312747830,1706193038529,-2035.37544613,0.00018717,2]
[312747832,1706193038539,-20908.42418905,0.00018717,2]
[312747834,1706193038549,-4105.13214194,0.00018718,2]
[312747836,1706193038557,-154.98450155,0.00018718,2]
[312747838,1706193038567,-189.89773254,0.00018729,2]
[312747840,1706193038577,-170.0,0.00018729,2]
[312747842,1706193038586,-61257.40920908,0.0001873,2]
[312747844,1706193038595,-2104.41067508,0.00018835,2]
[312747846,1706193038604,-470.87385711,0.00018835,2]
[312747848,1706193038613,-2074.94658461,0.00018835,2]
[312747850,1706193038622,-1583.23422085,0.00019,2]
[312747852,1706193038631,-166.863452,0.00019178,2]
[312747854,1706193038640,-164.679597,0.00019178,2]
[312747856,1706193038649,-154.9690062,0.0002,2]
[312747858,1706193038659,-323.30988592,0.0002,2]
[312747860,1706193038667,-850.73963902,0.0002,2]
[312747862,1706193038676,-1198.61763963,0.0002,2]
[312747864,1706193038685,-679.03304923,0.0002,2]
[312747866,1706193038695,-200.0,0.00020604,2]
[312747868,1706193038704,-2047.76998724,0.0002082,2]
[312747870,1706193038713,-166.666666,0.00021918,2]
[312747872,1706193038722,-3970.33105698,0.00022,2]
[312747874,1706193038737,-1470.54830513,0.00022415,2]
[312747876,1706193038746,-166.666666,0.00022431,2]
[312747878,1706193038755,-280.0,0.00022665,7]
[312747881,1706193038766,-166.666666,0.00022944,2]
[312747882,1706193038777,-1416.02167727,0.00023,2]
[312747884,1706193038788,-166.666666,0.00023456,2]
[312747886,1706193038797,-166.666666,0.00023969,2]
[312747889,1706193038807,-166.666666,0.00024482,2]
[312747890,1706193038817,-156.775062,0.00024657,2]
[312747892,1706193038825,-380.0,0.00024658,2]
[312747894,1706193038834,-391.0,0.00024931,7]
[312747896,1706193038843,-228.0737053,0.00024958,2]
[312747898,1706193038853,-158.74528164,0.00024959,2]
[312747900,1706193038862,-157.88779037,0.00024959,2]
[312747903,1706193038871,-498.66582765,0.0002496,5]
[312747905,1706193038881,-4725.91421399,0.00025,2]
[312747906,1706193038890,-166.222775,0.00026117,2]
[312747908,1706193038899,-897.23374409,0.000264,2]
[312747910,1706193038908,-195.859399,0.00026758,2]
[312747913,1706193038918,-267.16265354,0.00026901,2]
[312747915,1706193038928,-290.53836744,0.00027,2]
[312747917,1706193038938,-260.18097711,0.00027362,2]
[312747919,1706193038949,-185.34356728,0.00027381,2]
[312747921,1706193038959,-155.30439429,0.00027389,2]
[312747922,1706193038971,-1993.75969151,0.00027391,2]
[312747924,1706193038980,-426.05744554,0.00027392,2]
[312747927,1706193038990,-8391.71265177,0.00027393,2]
[312747928,1706193038999,-541.04902725,0.00027393,2]
[312747931,1706193039010,-905.71461847,0.00027394,2]
[312747932,1706193039019,-155.78337539,0.00027394,2]
[312747935,1706193039029,-2540.0345208,0.00027395,2]
[312747937,1706193039039,-978.2579722,0.00027395,2]
[312747939,1706193039049,-198.57798915,0.00027395,2]
[312747941,1706193039058,-588.29215877,0.00027395,2]
[312747942,1706193039067,-18187.49,0.00027397,3]
[312747945,1706193039077,-15156.24,0.00027397,3]
[312747946,1706193039086,-12630.2,0.00027397,3]
[312747949,1706193039096,-200.0,0.00027424,15]
[312747951,1706193039105,-348.0,0.00027424,15]
[312747952,1706193039115,-633.8616872,0.0002772,2]
[312747955,1706193039124,-197.43773453,0.00028625,2]
[312747956,1706193039133,-4516.50249644,0.00028712,2]
[312747958,1706193039143,-937.28901272,0.00028725,2]
[312747961,1706193039153,-50000.0,0.00028726,3]
[312747962,1706193039162,-309.36261394,0.00029,2]
[312747965,1706193039171,-620.69308436,0.00029106,2]
[312747967,1706193039181,-306.0,0.00029315,2]
[312747969,1706193039190,-307.0293409,0.00029315,2]
[312747971,1706193039200,-258.227472,0.00029315,2]
[312747973,1706193039209,-306.6902113,0.00029315,2]
[312747975,1706193039218,-266.4949991,0.00029315,2]
[312747976,1706193039227,-153.0,0.00029315,2]
[312747979,1706193039237,-199.2396578,0.00029315,2]
[312747981,1706193039246,-153.0,0.00029315,2]
[312747983,1706193039255,-153.0,0.00029315,2]
[312747985,1706193039264,-199.3339408,0.00029315,2]
[312747987,1706193039273,-153.0,0.00029315,2]
[312747989,1706193039282,-153.0,0.00029315,2]
[312747990,1706193039291,-153.0,0.00029315,2]
[312747992,1706193039301,-153.0,0.00029315,2]
[312747994,1706193039310,-199.3339408,0.00029315,2]
[312747996,1706193039319,-199.3339408,0.00029315,2]
[312747998,1706193039328,-153.0,0.00029315,2]
[312748000,1706193039337,-153.0,0.00029315,2]
[312748002,1706193039346,-199.3339408,0.00029315,2]
[312748004,1706193039355,-153.0,0.00029315,2]
[312748006,1706193039364,-153.0,0.00029315,2]
[312748008,1706193039373,-153.0,0.00029315,2]
[312748010,1706193039382,-198.2846316,0.00029315,2]
[312748012,1706193039392,-197.4377345,0.00029369,2]
[312748015,1706193039401,-150.0,0.000298,2]
[312748016,1706193039410,-213.4599841,0.00029886,2]
[312748019,1706193039419,-229.82325492,0.00029886,2]
[312748021,1706193039429,-274.09393528,0.00029886,2]
[312748023,1706193039439,-155.34756708,0.00029887,2]
[312748025,1706193039449,-155.48219181,0.00029887,2]
[312748027,1706193039458,-155.34919352,0.00029887,2]
[312748029,1706193039468,-302.68407547,0.00029887,2]
[312748031,1706193039477,-155.07430945,0.00029887,2]
[312748033,1706193039487,-7382.89018777,0.00029887,2]
[312748035,1706193039496,-155.20393255,0.00029887,2]
[312748037,1706193039506,-1880.79357717,0.00029887,2]
[312748039,1706193039515,-543.09257964,0.00029887,2]
[312748041,1706193039525,-293.23172377,0.00029889,2]
[312748043,1706193039535,-978.72522112,0.00029889,2]
[312748045,1706193039544,-1826.97153487,0.0002989,2]
[312748047,1706193039553,-279.82176233,0.0002989,2]
[312748049,1706193039562,-300.0,0.0002989,2]
[312748051,1706193039572,-2085.40450746,0.0002989,2]
[312748053,1706193039581,-5275.81457674,0.0002989,7]
[312748055,1706193039590,-303.61999861,0.0002989,2]
[312748057,1706193039599,-155.30469748,0.0002989,2]
[312748059,1706193039608,-154.9690062,0.0002989,2]
[312748061,1706193039619,-263.07850426,0.0002989,2]
[312748063,1706193039627,-6129.67718162,0.0002989,2]
[312748065,1706193039637,-764.4359775,0.0002989,2]
[312748067,1706193039646,-154.9690062,0.0002989,7]
[312748069,1706193039655,-291.31420189,0.0003,3]
[312748071,1706193039664,-687.23319626,0.0003,4]
[312748073,1706193039673,-309.62838094,0.0003,4]
[312748076,1706193039682,-797.64547305,0.0003,4]
[312748079,1706193039691,-318.20063645,0.0003,2]
[312748082,1706193039700,-2371.37507479,0.0003,2]
[312748085,1706193039709,-195.4790082,0.0003,2]
[312748088,1706193039718,-244.31917233,0.0003,4]
[312748090,1706193039727,-688.78830185,0.0003,4]
[312748092,1706193039736,-139264.62830083,0.0003,4]
[312748094,1706193039745,-197.4377345,0.00030113,2]
[312748097,1706193039758,-153.0,0.00030137,2]
[312748100,1706193039767,-160.550363,0.00030137,2]
[312748103,1706193039777,-157.894736,0.00030137,2]
[312748106,1706193039787,-200.0,0.00030166,15]
[312748109,1706193039796,-200.0,0.00030166,15]
[312748112,1706193039806,-368.0,0.00030166,15]
[312748115,1706193039815,-620.03465422,0.00030561,2]
[312748118,1706193039824,-155.0,0.000308,2]
[312748121,1706193039835,-197.4377345,0.00030856,2]
[312748124,1706193039844,-16794.35324564,0.000309,14]
[312748127,1706193039853,-326.58097042,0.00031,6]
[312748130,1706193039862,-160.550363,0.00031233,2]
[312748133,1706193039871,-576.0,0.000313,2]
[312748136,1706193039881,-197.4377345,0.000316,2]
[312748139,1706193039892,-224877.17368468,0.00031699,2]
[312748142,1706193039901,-8866.361323,0.00031699,2]
[312748145,1706193039910,-8866.361323,0.00031699,2]
[312748148,1706193039920,-151.0,0.00031699,2]
[312748151,1706193039928,-195.084018,0.00031699,2]
[312748153,1706193039937,-500.0,0.00031799,7]
[312748155,1706193039946,-500.0,0.00031799,7]
[312748157,1706193039955,-359.27365659,0.00031799,7]
[312748159,1706193039964,-163.3970098,0.00031799,7]
[312748161,1706193039973,-603.07710124,0.00031799,7]
[312748163,1706193039982,-379.40673122,0.00031799,7]
[312748165,1706193039992,-500.0,0.00031799,7]
[312748167,1706193040000,-500.0,0.00031799,7]
[312748169,1706193040010,-407.31502133,0.00031799,7]
[312748171,1706193040019,-500.0,0.00031799,7]
[312748181,1706193040107,-265.32596206,0.00031799,7]
[312748183,1706193040117,-313.05621829,0.00031799,7]
[312748185,1706193040126,-500.0,0.00031799,7]
[312748187,1706193040135,-500.0,0.00031799,7]
[312748189,1706193040145,-500.0,0.00031799,7]
[312748191,1706193040154,-500.0,0.00031799,7]
[312748193,1706193040163,-319.36736252,0.00031799,2]
[312748195,1706193040172,-500.0,0.00031799,7]
[312748197,1706193040181,-500.0,0.00031799,7]
[312748199,1706193040190,-500.0,0.00031799,7]
[312748201,1706193040199,-500.0,0.00031799,7]
[312748203,1706193040208,-500.0,0.00031799,7]
[312748205,1706193040218,-573.84656956,0.00031799,7]
[312748207,1706193040227,-500.0,0.00031799,7]
[312748210,1706193040236,-551.94903952,0.00031799,7]
[312748212,1706193040245,-500.0,0.00031799,7]
[312748214,1706193040254,-500.0,0.00031799,7]
[312748216,1706193040263,-338.30519872,0.00031799,7]